bitfinex-derivatives/quotes_SOLF0:USTF0_20241120
["timestamp","ask_amount","ask_price","bid_price","bid_amount"]
[1732092181147,2.08,238.6,238.57,2.0936]
[1732092181342,2.08,238.59,238.56,6.48369968]
[1732092182242,2.08,238.59,238.58,2.0935]
[1732092183047,2.08,238.59,238.57,2.0936]
[1732092183254,2.08,238.59,238.52,6.48369968]
[1732092183554,2.08,238.59,238.51,1.2015]
[1732092183555,8.56369968,238.59,238.51,1.2015]
[1732092184455,6.48369968,238.57,238.51,1.2015]
[1732092184851,6.48369968,238.57,238.53,2.0939]
[1732092185651,6.48369968,238.57,238.54,2.0938]
[1732092186052,8.56369968,238.59,238.51,1.2015]
[1732092186252,6.48369968,238.57,238.53,2.0939]
[1732092186451,2.08,238.59,238.51,1.2015]
[1732092186651,8.56369968,238.59,238.51,1.2015]
[1732092186852,2.08,238.59,238.51,1.2015]
[1732092187049,2.08,238.59,238.52,6.48369968]
[1732092187253,2.08,238.6,238.54,6.48369968]
[1732092188352,2.08,238.6,238.51,1.2015]
[1732092188654,2.08,238.6,238.52,9.6622213]
[1732092188857,8.56369968,238.6,238.53,3.17852162]
[1732092189057,2.08,238.6,238.51,7.68519968]
[1732092189257,2.08,238.6,238.52,3.17910989]
[1732092189460,2.08,238.6,238.53,3.17910989]
[1732092189756,2.08,238.6,238.51,7.68519968]
[1732092189950,2.08,238.6,238.52,3.17912017]
[1732092190149,2.08,238.6,238.51,7.68519968]
[1732092190361,2.08,238.6,238.57,2.0935]
[1732092190556,2.08,238.6,238.53,6.48369968]
[1732092192852,2.0929,238.65,238.55,8.57739968]
[1732092193049,8.56369968,238.64,238.55,6.48369968]
[1732092194261,8.56369968,238.64,238.58,2.0935]
[1732092196052,2.08,238.64,238.58,2.0935]
[1732092196249,6.48369968,238.63,238.58,2.0935]
[1732092197556,6.48369968,238.63,238.53,6.48369968]
[1732092198256,6.48369968,238.63,238.59,2.0934]
[1732092199361,6.48369968,238.63,238.55,6.48369968]
[1732092199757,2.08,238.64,238.48,1.281]
[1732092199959,2.08,238.64,238.49,8.2613738]
[1732092200154,2.08,238.64,238.51,6.48369968]
[1732092200356,6.48369968,238.63,238.53,6.48369968]
[1732092200559,6.48369968,238.63,238.58,2.0934]
[1732092202059,1.2166,238.69,238.55,6.48369968]
[1732092202060,2.08,238.62,238.55,6.48369968]
[1732092202265,6.48369968,238.65,238.55,6.48369968]
[1732092202468,2.08,238.64,238.57,6.48369968]
[1732092202669,2.08,238.63,238.57,6.48369968]
[1732092202863,2.08,238.62,238.61,2.0932]
[1732092203568,2.08,238.62,238.55,6.48369968]
[1732092203759,2.08,238.62,238.56,3.18322095]
[1732092203962,2.08,238.62,238.53,6.48369968]
[1732092204162,2.08,238.62,238.57,2.0935]
[1732092204363,2.08,238.62,238.53,6.48369968]
[1732092204558,2.08,238.62,238.54,8.28111562]
[1732092204765,2.08,238.62,238.55,3.18504447]
[1732092204967,2.08,238.62,238.53,6.48369968]
[1732092205168,2.08,238.62,238.54,3.18546247]
[1732092205362,2.08,238.62,238.48,7.4392013]
[1732092205363,6.48369968,238.61,238.55,3.18546247]
[1732092205667,6.48369968,238.61,238.57,2.0936]
[1732092205872,2.08,238.62,238.57,2.0936]
[1732092206064,6.48369968,238.61,238.57,2.0936]
[1732092206766,6.48369968,238.61,238.55,2.0937]
[1732092207664,6.48369968,238.61,238.56,2.0936]
[1732092208765,6.48369968,238.61,238.52,6.48369968]
[1732092209067,6.48369968,238.61,238.57,2.0936]
[1732092209968,2.08,238.62,238.57,2.0936]
[1732092210769,2.08,238.62,238.49,4.08937284]
[1732092210971,2.08,238.62,238.52,6.48369968]
[1732092211170,2.08,238.62,238.53,8.29939108]
[1732092211373,2.08,238.62,238.57,2.0936]
[1732092211674,2.08,238.61,238.58,3.19276986]
[1732092211868,2.08,238.61,238.55,6.48369968]
[1732092212074,2.08,238.61,238.56,8.30030207]
[1732092212266,2.08,238.61,238.57,8.30030207]
[1732092212569,2.08,238.61,238.6,2.0933]
[1732092215366,2.08,238.61,238.54,6.48369968]
[1732092215568,2.08,238.61,238.55,3.19555694]
[1732092215870,2.08,238.61,238.56,3.19572389]
[1732092216070,2.08,238.61,238.54,6.48369968]
[1732092216266,2.08,238.61,238.57,2.0935]
[1732092219165,2.08,238.61,238.52,7.66009968]
[1732092219366,2.08,238.61,238.58,2.0935]
[1732092219973,2.08,238.63,238.62,2.0931]
[1732092221471,6.48369968,238.68,238.62,2.0931]
[1732092221675,2.08,238.67,238.62,2.0931]
[1732092223170,2.08,238.67,238.63,2.093]
[1732092225073,2.08,238.67,238.64,2.093]
[1732092227583,6.48369968,238.68,238.64,2.093]
[1732092227875,2.08,238.67,238.64,2.093]
[1732092228380,2.08,238.67,238.65,2.0929]
[1732092228772,1.2166,238.69,238.62,6.48369968]
[1732092228980,2.08,238.68,238.66,6.48369968]
[1732092229282,2.08,238.67,238.66,6.48369968]
[1732092229776,7.71649968,238.73,238.68,2.0926]
[1732092229982,6.48369968,238.71,238.68,2.0926]
[1732092230483,6.48369968,238.71,238.69,2.0925]
[1732092232086,2.08,238.72,238.69,2.0925]
[1732092233182,2.0924,238.7,238.57,1.1776]
[1732092233485,6.48369968,238.67,238.59,6.48369968]
[1732092233686,2.08,238.66,238.59,6.48369968]
[1732092234589,2.08,238.66,238.64,2.0929]
[1732092235686,2.08,238.66,238.65,2.0929]
[1732092237001,6.48369968,238.69,238.65,2.0929]
[1732092237198,2.08,238.68,238.65,2.0929]
[1732092237399,2.08,238.68,238.66,2.0928]
[1732092238905,2.08,238.68,238.63,2.093]
[1732092239102,2.08,238.68,238.61,6.48369968]
[1732092240101,2.08,238.68,238.63,2.093]
[1732092240295,2.08,238.68,238.61,6.48369968]
[1732092241501,2.08,238.68,238.66,2.0928]
[1732092244006,2.08,238.68,238.67,2.0927]
[1732092247908,2.08,238.68,238.63,6.48369968]
[1732092248506,2.08,238.68,238.67,2.0927]
[1732092249811,2.08,238.72,238.65,6.48369968]
[1732092250200,6.48369968,238.71,238.63,6.48369968]
[1732092253098,6.48369968,238.71,238.67,2.0926]
[1732092253303,2.08,238.7,238.65,6.48369968]
[1732092253505,2.08,238.7,238.68,6.48369968]
[1732092253707,6.48369968,238.77,238.73,2.0921]
[1732092253908,2.08,238.74,238.73,2.0921]
[1732092254109,2.08,238.74,238.69,2.0924]
[1732092254407,3.23998118,238.78,238.7,6.48369968]
[1732092254408,1.1977,238.78,238.7,6.48369968]
[1732092254606,30.4945974,238.79,238.72,6.48369968]
[1732092254806,30.4945974,238.79,238.78,2.0917]
[1732092255012,32.5745974,238.79,238.78,2.0917]
[1732092257405,32.5745974,238.79,238.77,2.0918]
[1732092259724,32.5745974,238.79,238.66,1.2143]
[1732092259922,32.5745974,238.79,238.74,2.0921]
[1732092261816,32.5745974,238.79,238.77,2.0918]
[1732092262115,30.4945974,238.79,238.77,2.0918]
[1732092262420,32.5745974,238.79,238.77,2.0918]
[1732092262720,32.5745974,238.79,238.78,2.0917]
[1732092264419,30.4945974,238.79,238.78,8.57539968]
[1732092264817,23.23701531,238.79,238.78,8.57539968]
[1732092265021,23.23701531,238.79,238.78,2.0917]
[1732092265219,23.23701531,238.79,238.78,8.57539968]
[1732092265716,21.29131531,238.79,238.78,8.57539968]
[1732092266025,2.08,238.84,238.78,6.48369968]
[1732092266224,2.08,238.84,238.7,2.08]
[1732092266225,2.08,238.85,238.79,1.229]
[1732092266521,2.08,238.86,238.79,1.229]
[1732092266921,2.08,238.85,238.79,1.229]
[1732092269917,2.08,238.85,238.69,3.2884]
[1732092270123,2.08,238.85,238.71,1.2327]
[1732092273521,2.08,238.85,238.75,2.092]
[1732092273830,2.08,238.85,238.74,2.08]
[1732092274332,2.08,238.85,238.75,8.21136931]
[1732092274631,2.08,238.85,238.76,3.15821896]
[1732092274831,2.08,238.85,238.79,2.0916]
[1732092275035,2.08,238.85,238.74,2.08]
[1732092275234,2.08,238.85,238.75,5.05284066]
[1732092275431,2.08,238.85,238.78,2.0917]
[1732092275631,2.08,238.85,238.74,2.08]
[1732092275930,2.08,238.85,238.75,3.15769603]
[1732092276130,2.08,238.85,238.71,3.3127]
[1732092276330,2.08,238.85,238.72,8.21251057]
[1732092276632,2.08,238.85,238.8,2.0915]
[1732092278031,2.08,238.85,238.76,2.0919]
[1732092278228,2.08,238.85,238.71,1.2327]
[1732092278429,2.08,238.85,238.72,3.15718082]
[1732092278726,2.08,238.85,238.79,2.0916]
[1732092278930,2.08,238.85,238.71,1.2327]
[1732092279231,2.08,238.85,238.8,2.0916]
[1732092281627,2.08,238.85,238.73,5.05097632]
[1732092281832,2.08,238.85,238.81,1.44979808]
[1732092282033,2.4353,238.86,238.74,3.15681448]
[1732092282230,2.08,238.85,238.84,2.0912]
[1732092282735,2.08,238.85,238.72,3.15681326]
[1732092282926,2.08,238.85,238.73,3.15681326]
[1732092283234,2.08,238.85,238.71,1.2327]
[1732092283430,2.08,238.85,238.72,3.1575753]
[1732092283630,2.08,238.85,238.71,1.2327]
[1732092283835,2.08,238.85,238.72,3.15763771]
[1732092284032,2.08,238.85,238.71,1.2327]
[1732092284235,2.08,238.85,238.72,3.15841787]
[1732092284533,2.08,238.85,238.71,1.2327]
[1732092284735,2.08,238.85,238.72,3.15852362]
[1732092284937,2.08,238.85,238.71,1.2327]
[1732092285233,2.08,238.85,238.79,2.0916]
[1732092286334,2.08,238.85,238.71,1.2327]
[1732092286532,2.08,238.85,238.79,2.0916]
[1732092287435,2.08,238.85,238.75,2.092]
[1732092287633,2.08,238.85,238.71,1.2327]
[1732092287934,2.08,238.85,238.72,3.15925128]
[1732092288236,2.08,238.85,238.73,3.15925128]
[1732092288433,2.08,238.85,238.74,3.15925128]
[1732092288634,2.4353,238.86,238.72,2.08]
[1732092288835,2.08,238.84,238.73,3.15964124]
[1732092289138,2.08,238.85,238.74,3.15964124]
[1732092289341,2.08,238.85,238.82,2.0914]
[1732092290238,2.08,238.85,238.84,2.0912]
[1732092290938,30.16,238.9,238.76,3.16155031]
[1732092291236,2.08,238.89,238.77,3.16100978]
[1732092291432,2.08,238.89,238.73,22.89085566]
[1732092291433,2.08,238.89,238.78,3.16100978]
[1732092291634,3.6204,238.94,238.74,22.89085566]
[1732092291937,2.08,238.93,238.75,10.71207332]
[1732092292132,2.08,238.93,238.8,2.0915]
[1732092292338,2.08,238.92,238.72,29.02710847]
[1732092292542,2.08,238.92,238.73,19.53489386]
[1732092292839,2.08,238.92,238.87,2.0909]
[1732092293237,2.08,238.92,238.88,2.0908]
[1732092294433,2.08,238.92,238.89,2.0907]
[1732092294739,2.08,238.92,238.73,44.82053867]
[1732092294939,2.08,238.92,238.79,2.0916]
[1732092295235,2.08,238.92,238.73,27.65239692]
[1732092295435,2.08,238.92,238.74,4.98684767]
[1732092295638,2.08,238.92,238.73,44.82053867]
[1732092295842,2.08,238.92,238.74,4.98678034]
[1732092296040,2.08,238.92,238.73,44.82053867]
[1732092296241,2.08,238.92,238.88,2.0908]
[1732092296941,2.08,238.92,238.73,44.82053867]
[1732092297235,2.08,238.92,238.73,21.92968301]
[1732092297838,2.08,238.92,238.86,2.091]
[1732092298241,4.1706,238.92,238.73,21.92968301]
[1732092298942,4.1706,238.92,238.85,2.0911]
[1732092299144,3.6204,238.94,238.74,5.72271391]
[1732092299338,2.08,238.93,238.89,2.0908]
[1732092299539,2.08,238.93,238.77,2.08]
[1732092299742,2.08,238.93,238.77,3.3711]
[1732092300048,3.6204,238.94,238.89,2.0908]
[1732092300249,2.08,238.92,238.89,2.0908]
[1732092301445,2.08,238.91,238.77,3.3711]
[1732092301647,2.08,238.91,238.9,2.0906]
[1732092307659,2.08,238.94,238.91,2.0905]
[1732092309154,2.08,238.94,238.92,2.0905]
[1732092309454,2.08,238.94,238.82,2.08]
[1732092309854,2.08,238.94,238.91,2.0905]
[1732092310058,2.08,238.94,238.82,2.08]
[1732092311556,2.08,238.94,238.79,1.1963]
[1732092311752,2.08,238.94,238.79,3.2763]
[1732092311957,2.08,238.94,238.83,2.0912]
[1732092312160,2.08,238.94,238.79,3.2763]
[1732092312459,2.08,238.94,238.79,1.1963]
[1732092312661,2.08,238.94,238.87,2.0909]
[1732092312864,2.08,238.94,238.79,1.1963]
[1732092313053,4.1703,238.94,238.86,2.091]
[1732092313254,1.2317,238.93,238.86,2.091]
[1732092313455,1.2317,238.93,238.79,1.1963]
[1732092313759,2.08,238.92,238.87,2.0909]
[1732092315264,3.69,238.99,238.87,2.0909]
[1732092315265,2.08,238.91,238.87,2.0909]
[1732092315466,2.0903,238.95,238.88,2.0908]
[1732092315659,2.08,238.94,238.88,2.0908]
[1732092317163,2.08,238.94,238.79,1.1963]
[1732092317363,2.08,238.94,238.87,2.0909]
[1732092318061,2.08,238.94,238.79,1.1963]
[1732092319266,2.08,238.94,238.88,2.0908]
[1732092320464,2.08,238.93,238.9,2.0907]
[1732092320667,2.08,238.92,238.9,2.0907]
[1732092324672,2.08,238.92,238.91,2.0906]
[1732092326073,2.09,238.98,238.91,2.0906]
[1732092326278,2.08,238.97,238.91,2.0906]
[1732092326882,2.08,238.97,238.92,2.0905]
[1732092327780,4.1701,238.97,238.92,2.0905]
[1732092328482,4.1701,238.97,238.93,2.0904]
[1732092330675,2.08,238.97,238.79,1.1963]
[1732092332087,2.0905,238.93,238.79,1.1963]
[1732092332386,2.08,238.92,238.79,1.1963]
[1732092332582,2.08,238.92,238.87,2.0909]
[1732092332985,2.08,238.92,238.79,1.1963]
[1732092333180,2.08,238.92,238.86,2.091]
[1732092333578,2.08,238.92,238.79,1.1963]
[1732092334988,2.08,238.92,238.86,2.091]
[1732092335684,2.08,238.92,238.73,28.83269692]
[1732092335890,3.73,238.91,238.74,4.99994182]
[1732092336087,3.73,238.91,238.73,46.00083867]
[1732092336289,3.73,238.91,238.74,4.99989723]
[1732092336480,3.73,238.91,238.77,5.72271391]
[1732092336680,5.8206,238.91,238.78,4.99989723]
[1732092336885,5.8206,238.91,238.77,5.72271391]
[1732092337191,5.8206,238.91,238.78,4.99840288]
[1732092337387,2.0908,238.89,238.8,2.0915]
[1732092337689,3.73,238.91,238.76,22.89085566]
[1732092337887,2.0817906,238.9,238.77,4.99712882]
[1732092338088,2.06023608,238.9,238.73,7.81481391]
[1732092338286,1.0,238.9,238.71,5.72271391]
[1732092338489,3.04056495,238.9,238.68,5.72271391]
[1732092338689,1.0,238.9,238.68,5.72271391]
[1732092338891,1.0,238.9,238.67,5.72271391]
[1732092339086,1.0,238.9,238.75,2.092]
[1732092339287,1.0,238.9,238.66,6.90301391]
[1732092339587,28.22276216,238.9,238.66,1.1803]
[1732092339793,26.11,238.9,238.66,1.1803]
[1732092339994,28.23406259,238.9,238.66,1.1803]
[1732092340788,28.23406259,238.9,238.63,1.2156]
[1732092341001,28.23406259,238.9,238.59,1.2926]
[1732092341393,12.56,238.88,238.68,2.0925]
[1732092341693,25.11,238.86,238.68,2.0925]
[1732092341898,42.68,238.85,238.68,2.0925]
[1732092342100,2.08,238.84,238.68,2.0925]
[1732092342397,2.08,238.84,238.59,1.2926]
[1732092342596,1.0,238.84,238.59,1.2926]
[1732092342800,2.08,238.83,238.59,1.2926]
[1732092343001,4.1713,238.83,238.66,2.0928]
[1732092343203,1.212,238.82,238.59,1.2926]
[1732092343603,2.4757,238.81,238.59,1.2926]
[1732092344005,4.5672,238.81,238.65,2.0928]
[1732092344301,2.08,238.8,238.59,1.2926]
[1732092345704,2.08,238.8,238.69,2.0925]
[1732092345905,2.08,238.8,238.59,1.2926]
[1732092345906,3.08,238.8,238.59,1.2926]
[1732092347004,3.08,238.8,238.7,2.0924]
[1732092347506,3.08,238.8,238.59,1.2926]
[1732092349711,2.08,238.79,238.76,2.0919]
[1732092349911,2.08,238.79,238.62,2.08]
[1732092350108,2.08,238.79,238.63,1.2299]
[1732092350309,2.08,238.79,238.76,2.0918]
[1732092351115,2.08,238.79,238.59,7.01531391]
[1732092351312,2.08,238.79,238.59,1.2926]
[1732092351912,1.0,238.78,238.59,1.2926]
[1732092352109,2.07859828,238.77,238.59,1.2926]
[1732092352716,2.07859828,238.77,238.69,2.0924]
[1732092352916,1.0,238.78,238.59,1.2926]
[1732092353817,1.0,238.78,238.64,2.0929]
[1732092354017,1.0,238.78,238.59,1.2926]
[1732092354711,2.0919,238.77,238.59,1.2926]
[1732092354913,3.04649721,238.78,238.59,1.2926]
[1732092355114,2.04649721,238.78,238.59,1.2926]
[1732092355316,1.0,238.76,238.56,24.90146561]
[1732092355617,3.11014275,238.76,238.56,24.90146561]
[1732092355815,1.0,238.76,238.51,1.2118]
[1732092356320,3.09925601,238.76,238.51,1.2118]
[1732092356711,2.0926,238.68,238.6,2.0933]
[1732092357017,3.3174,238.67,238.51,1.2118]
[1732092357220,2.08,238.66,238.51,1.2118]
[1732092357910,2.0931,238.63,238.51,1.2118]
[1732092358818,2.08,238.62,238.51,1.2118]
[1732092359018,2.08,238.61,238.51,1.2118]
[1732092359212,2.08,238.61,238.53,2.0939]
[1732092359615,2.08,238.61,238.44,1.2599]
[1732092359810,2.0933,238.6,238.51,2.094]
[1732092360020,2.08,238.61,238.38,5.72271391]
[1732092360214,2.08,238.61,238.38,1.2184]
[1732092360215,1.0,238.6,238.38,1.2184]
[1732092361422,2.08,238.59,238.52,2.094]
[1732092361621,2.08,238.59,238.4,5.72271391]
[1732092361821,2.08,238.59,238.4,1.2193]
[1732092362417,2.08,238.59,238.49,2.0942]
[1732092362622,2.08,238.59,238.4,6.94201391]
[1732092362822,2.08,238.59,238.41,4.91509196]
[1732092363124,2.08,238.59,238.51,2.0941]
[1732092364119,2.08,238.59,238.42,5.72271391]
[1732092364325,2.08,238.59,238.52,2.094]
[1732092365021,1.0,238.6,238.52,2.094]
[1732092365223,2.08,238.58,238.52,2.094]
[1732092365926,2.08,238.58,238.45,5.72271391]
[1732092366526,2.08,238.57,238.46,10.63794427]
[1732092366725,2.08,238.57,238.47,4.91406204]
[1732092366931,2.08,238.57,238.48,4.91370618]
[1732092367228,2.08,238.57,238.48,1.234]
[1732092367625,2.08,238.57,238.5,2.0941]
[1732092367925,2.08,238.57,238.48,1.234]
[1732092368123,2.08,238.57,238.52,2.094]
[1732092368926,2.0931,238.63,238.52,1.9641]
[1732092369225,2.08,238.62,238.5,2.0941]
[1732092369425,4.1732,238.62,238.48,1.234]
[1732092370426,4.1732,238.62,238.51,2.0941]
[1732092371127,2.08,238.61,238.51,2.0941]
[1732092371627,2.08,238.61,238.52,2.094]
[1732092372029,2.08,238.61,238.48,1.234]
[1732092372328,30.14,238.65,238.48,1.234]
[1732092372727,2.08,238.64,238.57,2.0935]
[1732092376426,2.08,238.64,238.48,1.234]
[1732092376628,2.08,238.64,238.58,2.0935]
[1732092379726,2.08,238.64,238.48,1.234]
[1732092380123,1.0,238.63,238.53,2.0939]
[1732092380324,1.0,238.63,238.48,1.234]
[1732092380525,2.0933,238.61,238.48,1.234]
[1732092380725,1.0,238.63,238.52,2.094]
[1732092380931,2.0934,238.59,238.52,2.094]
[1732092381127,2.1,238.58,238.48,1.234]
[1732092381328,2.1,238.57,238.43,5.72271391]
[1732092381527,2.1,238.57,238.42,17.16814175]
[1732092381528,2.0937,238.56,238.42,22.89085566]
[1732092381725,3.3662,238.57,238.41,24.09375566]
[1732092381926,3.3662,238.57,238.41,1.2029]
[1732092382132,1.2295,238.56,238.41,1.2029]
[1732092382332,1.2295,238.56,238.43,2.0947]
[1732092382531,1.2295,238.56,238.41,1.2029]
[1732092383130,2.2295,238.56,238.41,1.2029]
[1732092383330,2.094,238.53,238.45,2.0946]
[1732092383526,2.1,238.52,238.41,1.2029]
[1732092383724,2.1,238.51,238.41,1.2029]
[1732092384930,2.1,238.51,238.45,2.0946]
[1732092386537,2.12,238.5,238.45,2.0946]
[1732092387332,2.12,238.5,238.44,2.0947]
[1732092388435,2.12,238.5,238.41,1.2029]
[1732092389536,2.2295,238.56,238.41,1.2029]
[1732092389735,2.12,238.55,238.42,46.54851522]
[1732092390033,4.2138,238.55,238.47,2.0944]
[1732092390434,2.12,238.55,238.42,5.72271391]
[1732092390641,2.12,238.55,238.43,4.73331289]
[1732092390840,2.12,238.55,238.44,10.45533768]
[1732092391042,2.12,238.55,238.44,5.72271391]
[1732092391438,2.12,238.55,238.43,5.72271391]
[1732092391740,2.12,238.55,238.51,2.0941]
[1732092392744,2.12,238.55,238.41,3.2978]
[1732092392938,1.0,238.54,238.41,3.2978]
[1732092393642,1.0,238.54,238.41,1.2029]
[1732092393839,3.0939,238.54,238.45,2.0946]
[1732092394035,1.0,238.54,238.41,1.2029]
[1732092394440,2.094,238.52,238.43,2.0947]
[1732092394637,1.0,238.54,238.41,1.2029]
[1732092395347,2.2927,238.54,238.41,1.2029]
[1732092396236,2.0943,238.49,238.37,1.1787]
[1732092396442,2.12,238.48,238.37,1.1787]
[1732092399248,2.12,238.48,238.41,2.095]
[1732092401354,2.12,238.49,238.37,1.1787]
[1732092401846,1.0,238.54,238.37,3.2987]
[1732092402047,2.12,238.53,238.37,3.2987]
[1732092402243,2.12,238.53,238.37,9.02141391]
[1732092402752,2.12,238.53,238.49,2.0942]
[1732092402952,1.2662,238.57,238.37,9.02141391]
[1732092403253,1.2413,238.62,238.38,5.72271391]
[1732092403254,2.12,238.56,238.38,5.72271391]
[1732092403449,2.12,238.56,238.4,5.72271391]
[1732092403655,2.12,238.56,238.39,22.89085566]
[1732092403856,2.12,238.56,238.4,4.72388316]
[1732092404153,2.12,238.56,238.37,6.90141391]
[1732092404351,2.12,238.56,238.37,1.1787]
[1732092404352,2.094,238.53,238.37,1.1787]
[1732092404558,2.12,238.56,238.37,1.1787]
[1732092405459,2.0938,238.55,238.47,2.0944]
[1732092405956,2.12,238.56,238.45,2.0945]
[1732092405957,2.0939,238.54,238.45,2.0945]
[1732092406958,2.0939,238.54,238.46,2.0945]
[1732092408857,2.12,238.53,238.46,2.0945]
[1732092409758,2.12,238.53,238.37,1.1787]
[1732092411161,2.12,238.53,238.51,2.0941]
[1732092411653,2.0934,238.59,238.51,2.0941]
[1732092411856,2.12,238.58,238.54,2.0938]
[1732092412158,2.12,238.57,238.54,2.0938]
[1732092412758,1.2413,238.62,238.54,2.0938]
[1732092413059,2.12,238.61,238.54,2.0938]
[1732092413263,4.2132,238.61,238.54,2.0938]
[1732092413760,2.12,238.61,238.43,1.1934]
[1732092413954,2.12,238.61,238.48,2.0943]
[1732092414158,2.12,238.61,238.43,1.1934]
[1732092414462,2.12,238.61,238.44,2.0947]
[1732092414463,1.0,238.6,238.44,2.0947]
[1732092414662,1.0,238.6,238.37,1.1787]
[1732092415163,2.0939,238.54,238.47,2.0944]
[1732092415360,2.12,238.53,238.37,1.1787]
[1732092415560,1.0,238.6,238.37,1.1787]
[1732092415561,2.12,238.52,238.37,1.1787]
[1732092415762,2.12,238.52,238.47,2.0944]
[1732092417361,2.12,238.52,238.37,1.1787]
[1732092417564,2.12,238.52,238.41,2.0949]
[1732092417764,2.12,238.52,238.37,1.1787]
[1732092418264,2.12,238.52,238.46,2.0945]
[1732092418669,2.12,238.52,238.37,1.1787]
[1732092419064,2.12,238.52,238.48,2.0943]
[1732092419469,2.12,238.52,238.47,2.0944]
[1732092420267,2.0938,238.55,238.47,2.0944]
[1732092420469,2.12,238.51,238.47,2.0944]
[1732092420966,2.12,238.51,238.37,1.1787]
[1732092421964,2.12,238.51,238.44,2.0947]
[1732092422165,2.12,238.51,238.37,1.1787]
[1732092422564,1.0,238.6,238.37,1.1787]
[1732092422768,2.12,238.59,238.37,1.1787]
[1732092423166,2.0937,238.56,238.37,1.1787]
[1732092423367,2.12,238.59,238.37,1.1787]
[1732092424564,2.0935,238.58,238.5,2.0942]
[1732092424769,2.0935,238.58,238.37,6.90141391]
[1732092424968,1.0,238.6,238.38,22.89085566]
[1732092425270,2.12,238.59,238.42,5.72271391]
[1732092425465,2.12,238.58,238.43,2.12]
[1732092426463,2.12,238.58,238.56,2.0936]
[1732092426665,2.12,238.58,238.43,2.12]
[1732092426870,2.12,238.58,238.54,2.0938]
[1732092427671,2.12,238.58,238.44,1.2338]
[1732092428261,2.5034,238.64,238.5,2.0942]
[1732092428461,2.12,238.63,238.46,2.12]
[1732092428870,2.0934,238.59,238.5,2.0941]
[1732092429870,2.0934,238.59,238.51,2.0941]
[1732092430270,2.0933,238.6,238.45,1.1882]
[1732092430772,3.3625,238.62,238.53,2.0939]
[1732092431274,3.3625,238.62,238.54,2.0938]
[1732092431974,3.12,238.63,238.55,2.0937]
[1732092432169,3.12,238.63,238.45,1.1882]
[1732092432572,3.12,238.63,238.46,1.2368]
[1732092433276,3.12,238.63,238.57,2.0936]
[1732092433570,1.0,238.63,238.48,2.12]
[1732092433782,2.12,238.65,238.48,2.12]
[1732092434281,2.12,238.65,238.62,2.0931]
[1732092435382,2.12,238.66,238.63,2.093]
[1732092435582,2.12,238.65,238.48,2.12]
[1732092436484,2.12,238.65,238.46,1.2368]
[1732092436683,2.12,238.65,238.49,2.12]
[1732092439286,2.12,238.65,238.6,2.0932]
[1732092439692,2.12,238.65,238.49,2.12]
[1732092440886,2.12,238.65,238.53,2.0939]
[1732092441181,2.12,238.65,238.54,1.2309]
[1732092441384,2.12,238.68,238.61,10.10759845]
[1732092441589,2.12,238.72,238.61,10.10759845]
[1732092441787,2.12,238.72,238.64,2.0929]
[1732092441986,2.12,238.72,238.61,10.10759845]
[1732092443385,2.12,238.72,238.65,2.0929]